[Event "*** Titled Tuesday Blitz"]
[Site "Chess.com"]
[Date "2020.12.29"]
[Round "1"]
[White "bilelou"]
[Black "Anton_Zhukov04"]
[Result "1-0"]
[WhiteElo "2518"]
[BlackElo "2150"]
[TimeControl "180+1"]
[EndTime "10:07:50 PST"]
[Termination "bilelou won by resignation"]

1. d4 {[%clk 0:03:00.7]} 1... Nf6 {[%clk 0:02:59.8]} 2. Nc3 {[%clk 0:03:00.1]}
2... d5 {[%clk 0:02:59.3]} 3. Bg5 {[%clk 0:02:59.6]} 3... e6 {[%clk 0:02:57.3]}
4. e4 {[%clk 0:02:59.4]} 4... Be7 {[%clk 0:02:51.5]} 5. e5 {[%clk 0:02:58]} 5...
Nfd7 {[%clk 0:02:51.5]} 6. Bxe7 {[%clk 0:02:58.4]} 6... Qxe7 {[%clk 0:02:52.4]}
7. f4 {[%clk 0:02:58.8]} 7... O-O {[%clk 0:02:50.9]} 8. Nf3 {[%clk 0:02:59.7]}
8... c5 {[%clk 0:02:47.7]} 9. Qd2 {[%clk 0:02:59]} 9... Nc6 {[%clk 0:02:47.3]}
10. h4 {[%clk 0:02:55]} 10... cxd4 {[%clk 0:02:44.7]} 11. Nxd4 {[%clk
0:02:55.9]} 11... Nxd4 {[%clk 0:02:45]} 12. Qxd4 {[%clk 0:02:55.8]} 12... Qc5
{[%clk 0:02:44.9]} 13. Qxc5 {[%clk 0:02:53.2]} 13... Nxc5 {[%clk 0:02:43.9]} 14.
Nb5 {[%clk 0:02:53.7]} 14... Bd7 {[%clk 0:02:37.5]} 15. Nd4 {[%clk 0:02:53.7]}
15... Rac8 {[%clk 0:02:36.5]} 16. Bd3 {[%clk 0:02:52.3]} 16... a6 {[%clk
0:02:26.8]} 17. Kd2 {[%clk 0:02:49.9]} 17... f6 {[%clk 0:02:23.8]} 18. Rhf1
{[%clk 0:02:39.1]} 18... fxe5 {[%clk 0:02:20.6]} 19. fxe5 {[%clk 0:02:40]} 19...
g6 {[%clk 0:02:12.2]} 20. Ke3 {[%clk 0:02:28.4]} 20... Rxf1 {[%clk 0:02:04.6]}
21. Rxf1 {[%clk 0:02:19.2]} 21... Rf8 {[%clk 0:02:03]} 22. Rxf8+ {[%clk
0:02:09.8]} 22... Kxf8 {[%clk 0:02:01.7]} 23. b3 {[%clk 0:02:08.5]} 23... Ke7
{[%clk 0:01:59.9]} 24. Kf4 {[%clk 0:02:02.1]} 24... Be8 {[%clk 0:01:58.4]} 25.
Kg5 {[%clk 0:02:02]} 25... Nd7 {[%clk 0:01:32.7]} 26. Nf3 {[%clk 0:01:54.9]}
26... Kf7 {[%clk 0:01:30.8]} 27. Kh6 {[%clk 0:01:53.9]} 27... Kg8 {[%clk
0:01:29.7]} 28. b4 {[%clk 0:01:50.8]} 28... Bf7 {[%clk 0:01:18.4]} 29. c4 {[%clk
0:01:40]} 29... Nb6 {[%clk 0:01:09.2]} 30. c5 {[%clk 0:01:25.7]} 30... Nc4
{[%clk 0:01:04.2]} 31. a4 {[%clk 0:00:48.5]} 31... Ne3 {[%clk 0:01:00.3]} 32. g3
{[%clk 0:00:45.4]} 32... Be8 {[%clk 0:00:57.1]} 33. b5 {[%clk 0:00:43.1]} 33...
axb5 {[%clk 0:00:51.6]} 34. axb5 {[%clk 0:00:44]} 34... Nc4 {[%clk 0:00:51.6]}
35. Bxc4 {[%clk 0:00:35.6]} 35... dxc4 {[%clk 0:00:50.6]} 36. Nd4 {[%clk
0:00:36]} 36... c3 {[%clk 0:00:49.7]} 37. b6 {[%clk 0:00:34.5]} 37... Ba4 {[%clk
0:00:41.6]} 38. Kg5 {[%clk 0:00:34.2]} 38... Kf7 {[%clk 0:00:39.7]} 39. Kf4
{[%clk 0:00:34.1]} 39... Ke7 {[%clk 0:00:30.8]} 40. Ke3 {[%clk 0:00:34.1]} 40...
Kd7 {[%clk 0:00:30.3]} 41. Kd3 {[%clk 0:00:33.9]} 41... c2 {[%clk 0:00:30.5]}
42. Kd2 {[%clk 0:00:34.2]} 42... h6 {[%clk 0:00:19.6]} 43. Kc1 {[%clk
0:00:33.3]} 43... Ke7 {[%clk 0:00:17.5]} 44. Nxc2 {[%clk 0:00:18.4]} 44... Kd7
{[%clk 0:00:15.5]} 45. Nd4 {[%clk 0:00:18.4]} 45... g5 {[%clk 0:00:15.5]} 46.
hxg5 {[%clk 0:00:18.2]} 46... hxg5 {[%clk 0:00:16.4]} 47. Kd2 {[%clk 0:00:17.5]}
47... Ke7 {[%clk 0:00:12.7]} 48. Ke3 {[%clk 0:00:18.4]} 48... Kd7 {[%clk
0:00:11.8]} 49. Kf3 {[%clk 0:00:18.8]} 49... Bd1+ {[%clk 0:00:12]} 50. Ke3
{[%clk 0:00:19.1]} 50... g4 {[%clk 0:00:11.8]} 51. Kf4 {[%clk 0:00:19.2]} 51...
Ke7 {[%clk 0:00:10.6]} 52. Kg5 {[%clk 0:00:20.1]} 52... Kd7 {[%clk 0:00:10.7]}
53. Kf6 {[%clk 0:00:20.1]} 53... Ba4 {[%clk 0:00:10.3]} 54. Kf7 {[%clk
0:00:18.7]} 1-0

[Event "*** Titled Tuesday Blitz"]
[Site "Chess.com"]
[Date "2020.12.29"]
[Round "1"]
[White "jens1102"]
[Black "vinniethepooh"]
[Result "1/2-1/2"]
[WhiteElo "2376"]
[BlackElo "2694"]
[TimeControl "180+1"]
[EndTime "10:07:53 PST"]
[Termination "Game drawn by repetition"]

1. e4 {[%clk 0:02:59.7]} 1... c5 {[%clk 0:02:59.6]} 2. Nf3 {[%clk 0:03:00.1]}
2... d6 {[%clk 0:03:00.2]} 3. Nc3 {[%clk 0:03:00.4]} 3... Nf6 {[%clk 0:02:59.9]}
4. Bb5+ {[%clk 0:03:00.9]} 4... Nbd7 {[%clk 0:02:59.1]} 5. O-O {[%clk
0:03:00.2]} 5... a6 {[%clk 0:02:59.4]} 6. Bxd7+ {[%clk 0:03:00.5]} 6... Bxd7
{[%clk 0:03:00]} 7. d4 {[%clk 0:03:01.4]} 7... cxd4 {[%clk 0:03:00.1]} 8. Nxd4
{[%clk 0:03:02.3]} 8... e5 {[%clk 0:02:56.2]} 9. Nf5 {[%clk 0:02:57.1]} 9...
Bxf5 {[%clk 0:02:44.4]} 10. exf5 {[%clk 0:02:58]} 10... h6 {[%clk 0:02:28.4]}
11. f4 {[%clk 0:02:49.7]} 11... Be7 {[%clk 0:02:24.8]} 12. Be3 {[%clk
0:02:43.3]} 12... O-O {[%clk 0:02:23]} 13. Nd5 {[%clk 0:02:40.3]} 13... Rc8
{[%clk 0:02:06.1]} 14. Bb6 {[%clk 0:02:33.7]} 14... Qe8 {[%clk 0:01:57.9]} 15.
c3 {[%clk 0:02:06.5]} 15... Nxd5 {[%clk 0:01:52.7]} 16. Qxd5 {[%clk 0:02:07.4]}
16... Qc6 {[%clk 0:01:52.9]} 17. Qxc6 {[%clk 0:02:06.2]} 17... Rxc6 {[%clk
0:01:53.8]} 18. Be3 {[%clk 0:02:04]} 18... Bf6 {[%clk 0:01:51.4]} 19. fxe5
{[%clk 0:02:02.6]} 19... Bxe5 {[%clk 0:01:50.9]} 20. Bf4 {[%clk 0:02:03.1]}
20... Re8 {[%clk 0:01:42.6]} 21. Rae1 {[%clk 0:01:56.4]} 21... f6 {[%clk
0:01:43]} 22. Bxe5 {[%clk 0:01:53.1]} 22... dxe5 {[%clk 0:01:39.4]} 23. Rd1
{[%clk 0:01:53.4]} 23... Re7 {[%clk 0:01:36.9]} 24. Rd8+ {[%clk 0:01:51.2]}
24... Kh7 {[%clk 0:01:34.3]} 25. Rfd1 {[%clk 0:01:52.1]} 25... g6 {[%clk
0:01:11.8]} 26. R1d7 {[%clk 0:01:48.6]} 26... Rc7 {[%clk 0:01:04.5]} 27. Rxc7
{[%clk 0:01:46.4]} 27... Rxc7 {[%clk 0:01:05.4]} 28. g4 {[%clk 0:01:41.3]} 28...
h5 {[%clk 0:01:01]} 29. h3 {[%clk 0:01:34.8]} 29... hxg4 {[%clk 0:01:01.4]} 30.
hxg4 {[%clk 0:01:35.1]} 30... Kh6 {[%clk 0:00:36.5]} 31. fxg6 {[%clk 0:01:32.8]}
31... Rg7 {[%clk 0:00:30.5]} 32. Kf2 {[%clk 0:01:28.9]} 32... Kxg6 {[%clk
0:00:29.1]} 33. Kf3 {[%clk 0:01:23.4]} 33... Rh7 {[%clk 0:00:28.5]} 34. Rg8+
{[%clk 0:01:21.3]} 34... Kf7 {[%clk 0:00:28.4]} 35. Rb8 {[%clk 0:01:22]} 35...
Ke6 {[%clk 0:00:28.4]} 36. Ke4 {[%clk 0:01:20.9]} 36... Rh4 {[%clk 0:00:19.8]}
37. Rxb7 {[%clk 0:01:15.5]} 37... Rxg4+ {[%clk 0:00:19.8]} 38. Kf3 {[%clk
0:01:16.1]} 38... Ra4 {[%clk 0:00:19.3]} 39. a3 {[%clk 0:01:12.9]} 39... Kf5
{[%clk 0:00:19.4]} 40. Rb6 {[%clk 0:00:56.5]} 40... a5 {[%clk 0:00:19.8]} 41.
Rb5 {[%clk 0:00:53.5]} 41... Rf4+ {[%clk 0:00:20.1]} 42. Ke3 {[%clk 0:00:53.5]}
42... a4 {[%clk 0:00:20.8]} 43. Rb4 {[%clk 0:00:50.2]} 43... Rxb4 {[%clk
0:00:15.8]} 44. axb4 {[%clk 0:00:51.1]} 44... Ke6 {[%clk 0:00:14.2]} 45. c4
{[%clk 0:00:51.5]} 45... f5 {[%clk 0:00:11.7]} 46. Kf3 {[%clk 0:00:52]} 46...
Kd6 {[%clk 0:00:11.9]} 47. Ke3 {[%clk 0:00:52.4]} 47... Kc6 {[%clk 0:00:12.5]}
48. Kf3 {[%clk 0:00:51.9]} 48... Kd6 {[%clk 0:00:13.1]} 49. Ke3 {[%clk
0:00:52.3]} 49... e4 {[%clk 0:00:09.8]} 50. Kd4 {[%clk 0:00:38.9]} 50... Ke6
{[%clk 0:00:07.7]} 51. b5 {[%clk 0:00:37.1]} 51... Kd6 {[%clk 0:00:08.3]} 52.
c5+ {[%clk 0:00:36.8]} 52... Kc7 {[%clk 0:00:08.4]} 53. Ke3 {[%clk 0:00:32.1]}
53... Kb7 {[%clk 0:00:08.9]} 54. Kf4 {[%clk 0:00:32.1]} 54... Kc7 {[%clk
0:00:09.6]} 55. Ke3 {[%clk 0:00:31.7]} 55... Kd7 {[%clk 0:00:08]} 56. Kf4 {[%clk
0:00:24.9]} 56... Kc7 {[%clk 0:00:06]} 57. Ke3 {[%clk 0:00:24.8]} 1/2-1/2

[Event "*** Titled Tuesday Blitz"]
[Site "Chess.com"]
[Date "2020.12.29"]
[Round "1"]
[White "Ze-Pequeno"]
[Black "szabadaba"]
[Result "1-0"]
[WhiteElo "2327"]
[BlackElo "2591"]
[TimeControl "180+1"]
[EndTime "10:07:53 PST"]
[Termination "Ze-Pequeno won by resignation"]

1. e4 {[%clk 0:02:57.8]} 1... c6 {[%clk 0:02:59.5]} 2. b3 {[%clk 0:02:57]} 2...
d5 {[%clk 0:02:59.2]} 3. Bb2 {[%clk 0:02:57.5]} 3... dxe4 {[%clk 0:02:58.5]} 4.
Nc3 {[%clk 0:02:57.5]} 4... Nf6 {[%clk 0:02:58.1]} 5. Nge2 {[%clk 0:02:57.4]}
5... Bg4 {[%clk 0:02:57.3]} 6. h3 {[%clk 0:02:57.1]} 6... Bh5 {[%clk 0:02:57.1]}
7. g4 {[%clk 0:02:57]} 7... Bg6 {[%clk 0:02:57]} 8. Nf4 {[%clk 0:02:57.5]} 8...
Nbd7 {[%clk 0:02:54.7]} 9. Bg2 {[%clk 0:02:55]} 9... Nc5 {[%clk 0:02:53.4]} 10.
Qe2 {[%clk 0:02:47.6]} 10... e6 {[%clk 0:02:40.8]} 11. h4 {[%clk 0:02:41.9]}
11... Bd6 {[%clk 0:02:31.7]} 12. Nxg6 {[%clk 0:02:40.5]} 12... hxg6 {[%clk
0:02:31.2]} 13. O-O-O {[%clk 0:02:37.6]} 13... Qa5 {[%clk 0:02:20.7]} 14. Kb1
{[%clk 0:02:35.9]} 14... O-O-O {[%clk 0:02:13.8]} 15. g5 {[%clk 0:02:08]} 15...
Nh5 {[%clk 0:02:02]} 16. Nxe4 {[%clk 0:01:53.2]} 16... Nxe4 {[%clk 0:01:58.3]}
17. Bxe4 {[%clk 0:01:48.3]} 17... Be5 {[%clk 0:01:45.4]} 18. d4 {[%clk
0:01:35.4]} 18... Bd6 {[%clk 0:01:44.1]} 19. Qf3 {[%clk 0:01:30.1]} 19... Rd7
{[%clk 0:01:34.1]} 20. c4 {[%clk 0:01:20.8]} 20... Ba3 {[%clk 0:01:26.4]} 21.
Bc3 {[%clk 0:01:16.8]} 21... Bb4 {[%clk 0:01:25.5]} 22. Bb2 {[%clk 0:01:16.7]}
22... Rhd8 {[%clk 0:01:24.8]} 23. Qe3 {[%clk 0:00:44.5]} 23... Kb8 {[%clk
0:01:03.5]} 24. Rh3 {[%clk 0:00:36.6]} 24... Bd6 {[%clk 0:00:49]} 25. Rf3 {[%clk
0:00:33.7]} 25... Qc7 {[%clk 0:00:47.7]} 26. Bc1 {[%clk 0:00:26.1]} 26... c5
{[%clk 0:00:34.4]} 27. d5 {[%clk 0:00:21.3]} 27... Be5 {[%clk 0:00:33.8]} 28.
Rd3 {[%clk 0:00:12]} 28... Bd4 {[%clk 0:00:32.2]} 29. Qe2 {[%clk 0:00:10.7]}
29... exd5 {[%clk 0:00:27]} 30. Bxd5 {[%clk 0:00:10.7]} 30... Re7 {[%clk
0:00:26.4]} 31. Qd1 {[%clk 0:00:11]} 31... Rde8 {[%clk 0:00:26.3]} 32. Bd2
{[%clk 0:00:11.4]} 32... Ka8 {[%clk 0:00:26.2]} 33. Qc2 {[%clk 0:00:11.5]} 33...
a6 {[%clk 0:00:23.4]} 34. a4 {[%clk 0:00:11.5]} 34... Ka7 {[%clk 0:00:22.2]} 35.
Ka2 {[%clk 0:00:11.8]} 35... f5 {[%clk 0:00:21.2]} 36. gxf6 {[%clk 0:00:10.2]}
36... gxf6 {[%clk 0:00:22.1]} 37. Qd1 {[%clk 0:00:08.4]} 37... Re2 {[%clk
0:00:18.6]} 38. Kb1 {[%clk 0:00:06.4]} 38... Qh2 {[%clk 0:00:15.7]} 39. Qf1
{[%clk 0:00:04.3]} 39... Qxh4 {[%clk 0:00:13.1]} 40. Rh3 {[%clk 0:00:03.6]}
40... Qg4 {[%clk 0:00:11.6]} 41. Bf3 {[%clk 0:00:02]} 41... Qf5 {[%clk
0:00:10.9]} 42. Bxe2 {[%clk 0:00:02.2]} 42... Rxe2 {[%clk 0:00:09.8]} 43. Qxe2
{[%clk 0:00:03.1]} 43... Qxh3 {[%clk 0:00:09.7]} 44. Rxh3 {[%clk 0:00:02.4]}
44... f5 {[%clk 0:00:08.4]} 45. Be3 {[%clk 0:00:02.6]} 45... Nf6 {[%clk
0:00:09.2]} 46. Bxd4 {[%clk 0:00:02.7]} 46... cxd4 {[%clk 0:00:09.7]} 47. Qd3
{[%clk 0:00:03.2]} 47... Ne4 {[%clk 0:00:10.6]} 48. Qxd4+ {[%clk 0:00:03.8]} 1-0

[Event "*** Titled Tuesday Blitz"]
[Site "Chess.com"]
[Date "2020.12.29"]
[Round "1"]
[White "KaterinaMiroshnik"]
[Black "HrvojeZagreb"]
[Result "1-0"]
[WhiteElo "2545"]
[BlackElo "2232"]
[TimeControl "180+1"]
[EndTime "10:07:57 PST"]
[Termination "KaterinaMiroshnik won by resignation"]

1. d3 {[%clk 0:02:59.9]} 1... e5 {[%clk 0:02:58.4]} 2. Nf3 {[%clk 0:03:00.3]}
2... d6 {[%clk 0:02:58.3]} 3. Nbd2 {[%clk 0:03:01.2]} 3... f5 {[%clk 0:02:58.4]}
4. e4 {[%clk 0:03:02.1]} 4... Nf6 {[%clk 0:02:58.6]} 5. Be2 {[%clk 0:03:02]}
5... Nc6 {[%clk 0:02:58.6]} 6. O-O {[%clk 0:03:02.6]} 6... Be7 {[%clk
0:02:58.9]} 7. c3 {[%clk 0:03:03]} 7... O-O {[%clk 0:02:58.5]} 8. Qc2 {[%clk
0:03:03.5]} 8... a5 {[%clk 0:02:56.3]} 9. a4 {[%clk 0:03:02.6]} 9... Qe8 {[%clk
0:02:47.1]} 10. b3 {[%clk 0:02:57.2]} 10... f4 {[%clk 0:02:39.5]} 11. d4 {[%clk
0:02:55.7]} 11... h6 {[%clk 0:02:33.7]} 12. Bb2 {[%clk 0:02:53.2]} 12... g5
{[%clk 0:02:32.6]} 13. dxe5 {[%clk 0:02:48.1]} 13... dxe5 {[%clk 0:02:33.5]} 14.
c4 {[%clk 0:02:48.3]} 14... Bc5 {[%clk 0:02:28.1]} 15. Nb1 {[%clk 0:02:26.6]}
15... Nb4 {[%clk 0:02:06.8]} 16. Qc3 {[%clk 0:02:26.3]} 16... Nxe4 {[%clk
0:02:06.3]} 17. Qxe5 {[%clk 0:02:25.9]} 17... Qxe5 {[%clk 0:02:05.5]} 18. Bxe5
{[%clk 0:02:24.4]} 18... c6 {[%clk 0:01:51.9]} 19. Nc3 {[%clk 0:02:10.2]} 19...
Bf5 {[%clk 0:01:51.6]} 20. Nxe4 {[%clk 0:02:08.3]} 20... Bxe4 {[%clk 0:01:52.5]}
21. Rad1 {[%clk 0:02:01.2]} 21... Rad8 {[%clk 0:01:41.8]} 22. Rxd8 {[%clk
0:01:35.2]} 22... Rxd8 {[%clk 0:01:40.8]} 23. Bc7 {[%clk 0:01:35.7]} 23... Re8
{[%clk 0:01:23.1]} 24. Bxa5 {[%clk 0:01:31.4]} 24... Bc2 {[%clk 0:01:19.9]} 25.
Bd1 {[%clk 0:01:30]} 25... Bf5 {[%clk 0:00:59.9]} 26. Re1 {[%clk 0:01:19.9]}
26... Rxe1+ {[%clk 0:00:41.7]} 27. Nxe1 {[%clk 0:01:19.9]} 27... Kf7 {[%clk
0:00:20.7]} 28. Kf1 {[%clk 0:01:08.9]} 28... Ke6 {[%clk 0:00:19.4]} 29. Ke2
{[%clk 0:01:05.7]} 29... g4 {[%clk 0:00:18.9]} 30. Bxb4 {[%clk 0:00:53]} 30...
Bxb4 {[%clk 0:00:18.7]} 31. Bc2 {[%clk 0:00:53.5]} 31... Bxc2 {[%clk 0:00:14]}
32. Nxc2 {[%clk 0:00:53.3]} 32... Bc5 {[%clk 0:00:14.9]} 33. b4 {[%clk
0:00:52.3]} 33... Ba7 {[%clk 0:00:14.3]} 34. f3 {[%clk 0:00:51.6]} 34... h5
{[%clk 0:00:13.8]} 35. c5 {[%clk 0:00:46.3]} 35... Ke5 {[%clk 0:00:13.7]} 36.
Kd3 {[%clk 0:00:41.2]} 36... b6 {[%clk 0:00:13.8]} 37. Kc4 {[%clk 0:00:38.3]}
37... bxc5 {[%clk 0:00:13.6]} 38. bxc5 {[%clk 0:00:39.2]} 38... h4 {[%clk
0:00:11.9]} 39. fxg4 {[%clk 0:00:30.7]} 39... h3 {[%clk 0:00:11.6]} 40. gxh3
{[%clk 0:00:30.8]} 40... Ke4 {[%clk 0:00:12.1]} 41. g5 {[%clk 0:00:25.4]} 41...
Bb8 {[%clk 0:00:10.8]} 42. g6 {[%clk 0:00:22.9]} 42... Be5 {[%clk 0:00:11]} 43.
Ne1 {[%clk 0:00:19.6]} 43... Ke3 {[%clk 0:00:10.9]} 44. Nd3 {[%clk 0:00:19.9]}
44... Bg7 {[%clk 0:00:09.5]} 45. a5 {[%clk 0:00:20.1]} 45... f3 {[%clk
0:00:09.2]} 46. a6 {[%clk 0:00:20.3]} 46... f2 {[%clk 0:00:07.7]} 47. Nxf2
{[%clk 0:00:20.8]} 47... Kxf2 {[%clk 0:00:08.6]} 48. a7 {[%clk 0:00:20.9]} 48...
Kg2 {[%clk 0:00:09.5]} 49. a8=Q {[%clk 0:00:19.4]} 49... Kxh3 {[%clk 0:00:10.4]}
50. Qxc6 {[%clk 0:00:19.7]} 50... Kxh2 {[%clk 0:00:10.5]} 51. Qf3 {[%clk
0:00:19.7]} 51... Kg1 {[%clk 0:00:09.7]} 52. Qf7 {[%clk 0:00:20.1]} 52... Be5
{[%clk 0:00:09.6]} 53. g7 {[%clk 0:00:20.4]} 53... Bxg7 {[%clk 0:00:09.9]} 54.
Qxg7+ {[%clk 0:00:20.5]} 54... Kh2 {[%clk 0:00:10.8]} 55. c6 {[%clk 0:00:20.9]}
1-0

[Event "*** Titled Tuesday Blitz"]
[Site "Chess.com"]
[Date "2020.12.29"]
[Round "1"]
[White "SHIVACalypso"]
[Black "dropstoneDP"]
[Result "0-1"]
[WhiteElo "2469"]
[BlackElo "2950"]
[TimeControl "180+1"]
[EndTime "10:08:00 PST"]
[Termination "dropstoneDP won on time"]

1. Nf3 {[%clk 0:02:56.8]} 1... f5 {[%clk 0:02:59.9]} 2. c4 {[%clk 0:02:57.7]}
2... Nf6 {[%clk 0:02:58.5]} 3. g3 {[%clk 0:02:57.6]} 3... g6 {[%clk 0:02:58.1]}
4. Bg2 {[%clk 0:02:57.9]} 4... Bg7 {[%clk 0:02:58.7]} 5. O-O {[%clk 0:02:58.4]}
5... O-O {[%clk 0:02:59.2]} 6. Nc3 {[%clk 0:02:57.9]} 6... d6 {[%clk 0:02:58.1]}
7. Rb1 {[%clk 0:02:55.8]} 7... a5 {[%clk 0:02:54.9]} 8. a3 {[%clk 0:02:55.5]}
8... e5 {[%clk 0:02:54.5]} 9. d3 {[%clk 0:02:55.4]} 9... c6 {[%clk 0:02:48.6]}
10. b4 {[%clk 0:02:54.9]} 10... axb4 {[%clk 0:02:49.5]} 11. axb4 {[%clk
0:02:55.4]} 11... h6 {[%clk 0:02:48.6]} 12. b5 {[%clk 0:02:50.7]} 12... Be6
{[%clk 0:02:48.4]} 13. Nd2 {[%clk 0:02:36.2]} 13... d5 {[%clk 0:02:35.9]} 14.
Qb3 {[%clk 0:02:24.2]} 14... Qd6 {[%clk 0:01:31.7]} 15. Bb2 {[%clk 0:02:15.3]}
15... Nbd7 {[%clk 0:01:30.2]} 16. Ra1 {[%clk 0:02:09.7]} 16... d4 {[%clk
0:01:00.3]} 17. Na4 {[%clk 0:01:58.6]} 17... Rfb8 {[%clk 0:00:43.6]} 18. Ba3
{[%clk 0:01:36.8]} 18... c5 {[%clk 0:00:43.7]} 19. e3 {[%clk 0:01:06.6]} 19...
dxe3 {[%clk 0:00:40.2]} 20. fxe3 {[%clk 0:01:07.5]} 20... Ra5 {[%clk 0:00:34.2]}
21. Nb1 {[%clk 0:01:03.6]} 21... Ng4 {[%clk 0:00:32.7]} 22. Bb2 {[%clk
0:00:24.8]} 22... Nxe3 {[%clk 0:00:31.4]} 23. Re1 {[%clk 0:00:25.4]} 23... Nxg2
{[%clk 0:00:28.7]} 24. Kxg2 {[%clk 0:00:25]} 24... Rba8 {[%clk 0:00:29]} 25.
Nbc3 {[%clk 0:00:24]} 25... h5 {[%clk 0:00:20.6]} 26. Rad1 {[%clk 0:00:23.9]}
26... Bf7 {[%clk 0:00:15]} 27. Qc2 {[%clk 0:00:21.9]} 27... Nf8 {[%clk 0:00:15]}
28. Bc1 {[%clk 0:00:20.2]} 28... Ne6 {[%clk 0:00:15]} 29. Be3 {[%clk 0:00:20.4]}
29... Nd4 {[%clk 0:00:15.3]} 30. Qf2 {[%clk 0:00:20.5]} 30... Rxa4 {[%clk
0:00:15]} 31. Nxa4 {[%clk 0:00:20.3]} 31... Rxa4 {[%clk 0:00:15.9]} 32. Bxd4
{[%clk 0:00:20]} 32... Qxd4 {[%clk 0:00:14.8]} 33. Re2 {[%clk 0:00:17.6]} 33...
Qxf2+ {[%clk 0:00:14.3]} 34. Kxf2 {[%clk 0:00:18.2]} 34... Kf8 {[%clk
0:00:14.4]} 35. Rb2 {[%clk 0:00:17.9]} 35... e4 {[%clk 0:00:12.7]} 36. Rbd2
{[%clk 0:00:15.8]} 36... Bd4+ {[%clk 0:00:12.9]} 37. Kg2 {[%clk 0:00:15.4]}
37... e3 {[%clk 0:00:12.5]} 38. Re2 {[%clk 0:00:15.3]} 38... g5 {[%clk
0:00:09.8]} 39. Kf3 {[%clk 0:00:14.6]} 39... Ra3 {[%clk 0:00:09.3]} 40. h3
{[%clk 0:00:14.1]} 40... Kg7 {[%clk 0:00:08.3]} 41. Rc2 {[%clk 0:00:12.5]} 41...
Kf6 {[%clk 0:00:08.2]} 42. Re2 {[%clk 0:00:12.1]} 42... Ke5 {[%clk 0:00:07.2]}
43. g4 {[%clk 0:00:08.7]} 43... fxg4+ {[%clk 0:00:07.6]} 44. hxg4 {[%clk
0:00:09.6]} 44... h4 {[%clk 0:00:08.2]} 45. Rh2 {[%clk 0:00:08.9]} 45... Bg6
{[%clk 0:00:08.5]} 46. Rc2 {[%clk 0:00:06.2]} 46... Bxd3 {[%clk 0:00:08.2]} 47.
Rcd2 {[%clk 0:00:02.7]} 47... Be4+ {[%clk 0:00:08.3]} 48. Ke2 {[%clk 0:00:01.6]}
48... exd2 {[%clk 0:00:08.9]} 49. Rxd2 {[%clk 0:00:01.7]} 49... Rh3 {[%clk
0:00:08.9]} 0-1

[Event "*** Titled Tuesday Blitz"]
[Site "Chess.com"]
[Date "2020.12.29"]
[Round "1"]
[White "ljuks68"]
[Black "bascheyaro"]
[Result "0-1"]
[WhiteElo "2376"]
[BlackElo "2711"]
[TimeControl "180+1"]
[EndTime "10:08:00 PST"]
[Termination "bascheyaro won on time"]

1. e4 {[%clk 0:02:59.4]} 1... e6 {[%clk 0:01:48.3]} 2. d4 {[%clk 0:02:57.1]}
2... d5 {[%clk 0:01:49.2]} 3. Nc3 {[%clk 0:02:56.9]} 3... Bb4 {[%clk 0:01:48.7]}
4. e5 {[%clk 0:02:56.7]} 4... Ne7 {[%clk 0:01:49]} 5. a3 {[%clk 0:02:57]} 5...
Bxc3+ {[%clk 0:01:49.4]} 6. bxc3 {[%clk 0:02:57.6]} 6... b6 {[%clk 0:01:50.3]}
7. h4 {[%clk 0:02:49.3]} 7... Ba6 {[%clk 0:01:49.4]} 8. Bxa6 {[%clk 0:02:49.2]}
8... Nxa6 {[%clk 0:01:50.3]} 9. h5 {[%clk 0:02:49.5]} 9... h6 {[%clk 0:01:50.2]}
10. a4 {[%clk 0:02:49.7]} 10... c5 {[%clk 0:01:50.1]} 11. a5 {[%clk 0:02:45.1]}
11... O-O {[%clk 0:01:48]} 12. Ne2 {[%clk 0:02:43.7]} 12... Qc8 {[%clk
0:01:43.8]} 13. O-O {[%clk 0:02:31.6]} 13... cxd4 {[%clk 0:01:42.4]} 14. cxd4
{[%clk 0:02:29.9]} 14... Qc4 {[%clk 0:01:42.2]} 15. Ra3 {[%clk 0:02:13.7]} 15...
Rfc8 {[%clk 0:01:35.4]} 16. Rc3 {[%clk 0:02:12.7]} 16... Qa4 {[%clk 0:01:33.4]}
17. axb6 {[%clk 0:02:11.6]} 17... axb6 {[%clk 0:01:32.1]} 18. Rxc8+ {[%clk
0:02:01.3]} 18... Rxc8 {[%clk 0:01:29.9]} 19. c3 {[%clk 0:02:01.6]} 19... Qxd1
{[%clk 0:01:24.2]} 20. Rxd1 {[%clk 0:02:01.5]} 20... Nc6 {[%clk 0:01:25]} 21. f4
{[%clk 0:01:55.4]} 21... Na5 {[%clk 0:01:23.2]} 22. g4 {[%clk 0:01:54.7]} 22...
Nc4 {[%clk 0:01:18.6]} 23. f5 {[%clk 0:01:54.4]} 23... Nc7 {[%clk 0:01:18.4]}
24. Nf4 {[%clk 0:01:44]} 24... Ra8 {[%clk 0:01:17.4]} 25. Rf1 {[%clk 0:01:30.8]}
25... Re8 {[%clk 0:00:39.6]} 26. fxe6 {[%clk 0:01:28.2]} 26... fxe6 {[%clk
0:00:39.2]} 27. Ng6 {[%clk 0:01:28.7]} 27... Nb5 {[%clk 0:00:39.3]} 28. Rf3
{[%clk 0:01:25.7]} 28... Na5 {[%clk 0:00:37.1]} 29. g5 {[%clk 0:01:15.5]} 29...
hxg5 {[%clk 0:00:34.4]} 30. Bxg5 {[%clk 0:01:15.2]} 30... Nc6 {[%clk 0:00:35]}
31. Kf2 {[%clk 0:01:07.6]} 31... Ra8 {[%clk 0:00:32.9]} 32. Ke2 {[%clk
0:01:02.4]} 32... Nbxd4+ {[%clk 0:00:29]} 33. cxd4 {[%clk 0:01:00.9]} 33...
Nxd4+ {[%clk 0:00:29.9]} 34. Ke3 {[%clk 0:00:58]} 34... Nxf3 {[%clk 0:00:28.6]}
35. Kxf3 {[%clk 0:00:58]} 35... b5 {[%clk 0:00:27.1]} 36. Be7 {[%clk 0:00:57]}
36... Kf7 {[%clk 0:00:24.5]} 37. Bd6 {[%clk 0:00:53]} 37... Ra4 {[%clk
0:00:19.4]} 38. Ke3 {[%clk 0:00:50.3]} 38... b4 {[%clk 0:00:18]} 39. Kd3 {[%clk
0:00:47.5]} 39... Ra3+ {[%clk 0:00:17.7]} 40. Kc2 {[%clk 0:00:44.2]} 40... Rh3
{[%clk 0:00:17.6]} 41. Nf4 {[%clk 0:00:34.1]} 41... Rf3 {[%clk 0:00:16.9]} 42.
Nd3 {[%clk 0:00:32.2]} 42... b3+ {[%clk 0:00:17.3]} 43. Kd2 {[%clk 0:00:27]}
43... Rh3 {[%clk 0:00:17.4]} 44. Nc5 {[%clk 0:00:22.2]} 44... Rh2+ {[%clk
0:00:16]} 45. Kc1 {[%clk 0:00:22.2]} 45... b2+ {[%clk 0:00:16.1]} 46. Kb1 {[%clk
0:00:22.5]} 46... d4 {[%clk 0:00:16.5]} 47. Nb7 {[%clk 0:00:19.2]} 47... d3
{[%clk 0:00:15.9]} 48. Bb4 {[%clk 0:00:04.7]} 48... d2 {[%clk 0:00:15.5]} 49.
Nd8+ {[%clk 0:00:04.8]} 49... Ke8 {[%clk 0:00:14.9]} 50. Bxd2 {[%clk 0:00:04.6]}
50... Kxd8 {[%clk 0:00:12.2]} 51. Bg5+ {[%clk 0:00:02.1]} 51... Kd7 {[%clk
0:00:12.2]} 0-1